[Event "23rd ETCC Women 2021"]
[Site "Catez"]
[Date "2021.11.19"]
[Round "7.32"]
[White "Gajcin, Marina"]
[Black "Ghukasyan, Siranush"]
[Result "1/2-1/2"]
[ECO "C54"]
[WhiteElo "2198"]
[BlackElo "2168"]
[Annotator "NA"]
[PlyCount "59"]
[EventDate "2021.11.08"]
[EventType "team-tourn"]
[EventCountry "SLO"]
[SourceTitle "playchess.com"]
[Source "ChessBase"]
[SourceQuality "1"]
[WhiteTeam "Serbia"]
[BlackTeam "Armenia"]
[WhiteTeamCountry "SRB"]
[BlackTeamCountry "ARM"]
[TimeControl "40/5400+30:1800+30"]

1. e4 {[%emt 0:00:07]} e5 {[%emt 0:00:10]} 2. Nf3 {[%emt 0:00:06]} Nc6 {
[%emt 0:00:15]} 3. Bc4 {[%emt 0:00:15]} Bc5 {[%emt 0:00:02]} 4. c3 {[%emt 0:00:
09]} Nf6 {[%emt 0:00:03]} 5. d3 {[%emt 0:00:04]} d6 {[%emt 0:00:04]} 6. Nbd2 {
[%emt 0:00:48]} a6 {[%emt 0:00:09]} 7. Bb3 {[%emt 0:00:30]} O-O {[%emt 0:00:41]
} 8. h3 {[%emt 0:01:05]} h6 {[%emt 0:00:42]} 9. O-O {[%emt 0:05:46]} Be6 {
[%emt 0:00:42]} 10. Re1 {[%emt 0:10:41]} Re8 {[%emt 0:00:46]} 11. Nf1 {[%emt 0:
04:53]} d5 {[%emt 0:01:08]} 12. exd5 {[%emt 0:06:14]} Bxd5 {[%emt 0:00:51]} 13.
Bc2 {[%emt 0:02:50]} e4 {[%emt 0:13:40]} 14. dxe4 {[%emt 0:01:51]} Bxe4 {
[%emt 0:01:41]} 15. Be3 {[%emt 0:07:17]} Qxd1 {[%emt 0:04:51]} 16. Bxd1 {
[%emt 0:03:16]} Bxe3 {[%emt 0:00:18]} 17. Nxe3 {[%emt 0:02:21]} Rad8 {[%emt 0:
00:07]} 18. Be2 {[%emt 0:11:57]} Nd5 {[%emt 0:08:51]} 19. Nxd5 {[%emt 0:01:12]}
Bxd5 {[%emt 0:00:44]} 20. b3 {[%emt 0:07:02]} Ne5 {[%emt 0:09:12]} 21. Nxe5 {
[%emt 0:13:15]} Rxe5 {[%emt 0:00:03]} 22. Bg4 {[%emt 0:04:03]} Rde8 {[%emt 0:
04:14]} 23. Rxe5 {[%emt 0:00:22]} Rxe5 {[%emt 0:00:02]} 24. Rd1 {[%emt 0:00:33]
} Bc6 {[%emt 0:01:50]} 25. Rd8+ {[%emt 0:06:08]} Re8 {[%emt 0:01:21]} 26. Rxe8+
{[%emt 0:01:11]} Bxe8 {[%emt 0:00:03]} 27. Bf3 {[%emt 0:03:33]} b6 {[%emt 0:00:
35]} 28. Kf1 {[%emt 0:00:26]} Kf8 {[%emt 0:00:07]} 29. Ke2 {[%emt 0:00:32]} Ke7
{[%emt 0:00:06]} 30. Kd3 {[%emt 0:00:34]} 1/2-1/2

[Event "23rd ETCC Women 2021"]
[Site "Catez"]
[Date "2021.11.19"]
[Round "7.33"]
[White "Petrova, Kristyna"]
[Black "Repkova, Eva"]
[Result "1-0"]
[ECO "E40"]
[WhiteElo "2275"]
[BlackElo "2307"]
[Annotator "NA"]
[PlyCount "91"]
[EventDate "2021.11.08"]
[EventType "team-tourn"]
[EventCountry "SLO"]
[SourceTitle "playchess.com"]
[Source "ChessBase"]
[SourceQuality "1"]
[WhiteTeam "Czech Republic"]
[BlackTeam "Slovakia"]
[WhiteTeamCountry "CZE"]
[BlackTeamCountry "SVK"]
[TimeControl "40/5400+30:1800+30"]

1. d4 {[%emt 0:00:05]} Nf6 {[%emt 0:00:13]} 2. c4 {[%emt 0:00:10]} e6 {[%emt 0:
00:06]} 3. Nc3 {[%emt 0:00:09]} Bb4 {[%emt 0:01:12]} 4. e3 {[%emt 0:00:18]} Nc6
{[%emt 0:01:11]} 5. Nge2 {[%emt 0:00:45]} d5 {[%emt 0:04:55]} 6. cxd5 {[%emt 0:
08:07]} exd5 {[%emt 0:01:12]} 7. a3 {[%emt 0:00:14]} Bd6 {[%emt 0:02:50]} 8.
Qc2 {[%emt 0:04:11]} O-O {[%emt 0:02:13]} 9. Ng3 {[%emt 0:13:51]} Re8 {[%emt 0:
00:17]} 10. Be2 {[%emt 0:00:13]} g6 {[%emt 0:25:21]} 11. Bd2 {[%emt 0:09:24]}
a5 {[%emt 0:10:59]} 12. O-O {[%emt 0:04:01]} Bd7 {[%emt 0:12:52]} 13. Rfe1 {
[%emt 0:10:59]} Bf8 {[%emt 0:01:57]} 14. Rac1 {[%emt 0:04:26]} Bg7 {[%emt 0:00:
32]} 15. Bd3 {[%emt 0:01:18]} Be6 {[%emt 0:05:30]} 16. Bb5 {[%emt 0:02:20]} Bd7
{[%emt 0:00:29]} 17. Bd3 {[%emt 0:03:18]} Be6 {[%emt 0:00:03]} 18. Na4 {
[%emt 0:03:29]} Nd7 {[%emt 0:03:57]} 19. Qb3 {[%emt 0:02:50]} Ra7 {[%emt 0:01:
39]} 20. Ne2 {[%emt 0:03:02]} Ne7 {[%emt 0:02:13]} 21. Nf4 {[%emt 0:01:18]} c6
{[%emt 0:00:02]} 22. Nc5 {[%emt 0:03:59]} Nxc5 {[%emt 0:02:11]} 23. dxc5 {
[%emt 0:00:02]} Bf5 {[%emt 0:01:10]} 24. Bf1 {[%emt 0:02:25]} Be5 {[%emt 0:06:
37]} 25. Ne2 {[%emt 0:03:08]} Qc7 {[%emt 0:04:12]} 26. Ng3 {[%emt 0:03:52]} Be6
{[%emt 0:02:37]} 27. Qc2 {[%emt 0:02:02]} b5 {[%emt 0:00:18]} 28. cxb6 {
[%emt 0:01:20]} Qxb6 {[%emt 0:00:07]} 29. b4 {[%emt 0:00:05]} axb4 {[%emt 0:00:
23]} 30. Bxb4 {[%emt 0:00:15]} Qc7 {[%emt 0:01:07]} 31. Qc5 {[%emt 0:02:01]}
Rea8 {[%emt 0:02:41]} 32. Rc2 {[%emt 0:02:50]} h5 {[%emt 0:01:23]} 33. Bd3 {
[%emt 0:04:53]} h4 {[%emt 0:00:05]} 34. Nf1 {[%emt 0:00:04]} Qc8 {[%emt 0:01:
40]} 35. e4 {[%emt 0:01:45]} Bf4 {[%emt 0:01:57]} 36. Qd4 {[%emt 0:01:11]} c5 {
[%emt 0:01:20]} 37. Rxc5 {[%emt 0:00:48]} Nc6 {[%emt 0:00:39]} 38. Rxc6 {
[%emt 0:02:08]} Qxc6 {[%emt 0:00:01]} 39. Bc3 {[%emt 0:00:08]} Kf8 {[%emt 0:00:
53]} 40. exd5 {[%emt 0:01:53]} Qxd5 {[%emt 0:00:39]} 41. Qg7+ {[%emt 0:10:25]}
Ke7 {[%emt 0:00:36]} 42. Qf6+ {[%emt 0:03:51]} Ke8 {[%emt 0:04:58]} 43. Be4 {
[%emt 0:06:19]} Qg5 {[%emt 0:03:33]} 44. Bc6+ {[%emt 0:02:27]} Kf8 {[%emt 0:01:
19]} 45. Qh8+ {[%emt 0:01:05]} Ke7 {[%emt 0:00:10]} 46. Bxa8 {[%emt 0:00:26]}
1-0

[Event "23rd ETCC Women 2021"]
[Site "Catez"]
[Date "2021.11.19"]
[Round "7.34"]
[White "Hagarova, Zuzana"]
[Black "Miturova, Magdalena"]
[Result "1-0"]
[ECO "C93"]
[WhiteElo "2292"]
[BlackElo "2248"]
[Annotator "ChessBase"]
[PlyCount "97"]
[EventDate "2021.11.08"]
[EventType "team-tourn"]
[EventCountry "SLO"]
[SourceTitle "playchess.com"]
[Source "ChessBase"]
[SourceQuality "1"]
[WhiteTeam "Slovakia"]
[BlackTeam "Czech Republic"]
[WhiteTeamCountry "SVK"]
[BlackTeamCountry "CZE"]
[TimeControl "40/5400+30:1800+30"]

1. e4 {[%emt 0:00:04]} e5 {[%emt 0:00:05]} 2. Nf3 {[%emt 0:00:10]} Nc6 {
[%emt 0:00:07]} 3. Bb5 {[%emt 0:00:08]} a6 {[%emt 0:00:05]} 4. Ba4 {[%emt 0:00:
03]} Nf6 {[%emt 0:00:07]} 5. O-O {[%emt 0:00:08]} Be7 {[%emt 0:00:05]} 6. Re1 {
[%emt 0:00:10]} b5 {[%emt 0:00:10]} 7. Bb3 {[%emt 0:00:05]} d6 {[%emt 0:00:05]}
8. c3 {[%emt 0:00:20]} O-O {[%emt 0:00:10]} 9. h3 {[%emt 0:00:16]} h6 {[%emt 0:
00:09]} 10. d4 {[%emt 0:01:14]} Re8 {[%emt 0:00:06]} 11. Nbd2 {[%emt 0:01:05]}
Bf8 {[%emt 0:00:07]} 12. a3 {[%emt 0:02:01]} Bb7 {[%emt 0:11:26]} 13. Bc2 {
[%emt 0:02:03]} Nb8 {[%emt 0:05:14]} 14. a4 {[%emt 0:04:32]} Nbd7 {[%emt 0:03:
08]} 15. Bd3 {[%emt 0:01:08]} c6 {[%emt 0:01:23]} 16. b3 {[%emt 0:03:23]} d5 {
[%emt 0:12:14]} 17. dxe5 {[%emt 0:26:13]} Nxe5 {[%emt 0:07:55]} 18. Nxe5 {
[%emt 0:02:46]} Rxe5 {[%emt 0:00:04]} 19. Nf3 {[%emt 0:08:49]} Re8 {[%emt 0:03:
38]} 20. e5 {[%emt 0:00:48]} Nd7 {[%emt 0:00:31]} 21. Bc2 {[%emt 0:03:42]} Nc5
{[%emt 0:02:19]} 22. Nd4 {[%emt 0:06:00]} g6 {[%emt 0:18:09]} 23. axb5 {
[%emt 0:07:04]} cxb5 {[%emt 0:01:10]} 24. Qg4 {[%emt 0:01:08]} Kh7 {[%emt 0:04:
42]} 25. h4 {[%emt 0:08:18]} Qd7 {[%emt 0:04:34]} 26. e6 {[%emt 0:04:43]} Qe7 {
[%emt 0:11:21]} 27. h5 {[%emt 0:05:17]} Qf6 {[%emt 0:00:32]} 28. Re3 {[%emt 0:
03:31]} Bc8 {[%emt 0:08:54]} 29. Rf3 {[%emt 0:04:24]} Bxe6 {[%emt 0:01:29]} 30.
hxg6+ {[%emt 0:01:20]} Kh8 {[%emt 0:00:33]} 31. Qh5 {[%emt 0:00:52]} Qg7 {
[%emt 0:01:07]} 32. Bg5 {[%emt 0:03:20]} fxg6 {[%emt 0:02:01]} 33. Bxg6 {
[%emt 0:00:34]} Bg4 {[%emt 0:00:14]} 34. Bxh6 {[%emt 0:01:18]} Bxh5 {[%emt 0:
01:40]} 35. Bxg7+ {[%emt 0:00:07]} Bxg7 {[%emt 0:00:14]} 36. Bxh5 {[%emt 0:00:
15]} Re5 {[%emt 0:00:53]} 37. Bf7 {[%emt 0:00:39]} Bh6 {[%emt 0:01:29]} 38. b4
{[%emt 0:00:30]} Ne4 {[%emt 0:00:31]} 39. Nxb5 {[%emt 0:00:52]} Ng5 {[%emt 0:
00:27]} 40. Rf6 {[%emt 0:00:33]} Kg7 {[%emt 0:00:41]} 41. Rg6+ {[%emt 0:02:04]}
Kh7 {[%emt 0:03:47]} 42. f4 {[%emt 0:01:08]} Rf5 {[%emt 0:12:13]} 43. fxg5 {
[%emt 0:05:56]} Bg7 {[%emt 0:05:39]} 44. Rxg7+ {[%emt 0:03:23]} Kxg7 {[%emt 0:
00:06]} 45. g6 {[%emt 0:00:09]} a5 {[%emt 0:02:49]} 46. bxa5 {[%emt 0:02:45]}
d4 {[%emt 0:00:06]} 47. Nxd4 {[%emt 0:00:18]} Rfxa5 {[%emt 0:00:07]} 48. Ne6+ {
[%emt 0:00:23]} Kf6 {[%emt 0:00:10]} 49. Rf1+ {[%emt 0:00:23]} 1-0

[Event "23rd ETCC Women 2021"]
[Site "Catez"]
[Date "2021.11.19"]
[Round "7.35"]
[White "Richterova, Natasa"]
[Black "Mrvova, Alena"]
[Result "0-1"]
[ECO "A13"]
[WhiteElo "2185"]
[BlackElo "2174"]
[Annotator "NA"]
[PlyCount "66"]
[EventDate "2021.11.08"]
[EventType "team-tourn"]
[EventCountry "SLO"]
[SourceTitle "playchess.com"]
[Source "ChessBase"]
[SourceQuality "1"]
[WhiteTeam "Czech Republic"]
[BlackTeam "Slovakia"]
[WhiteTeamCountry "CZE"]
[BlackTeamCountry "SVK"]
[TimeControl "40/5400+30:1800+30"]

1. Nf3 {[%emt 0:00:03]} Nf6 {[%emt 0:00:47]} 2. c4 {[%emt 0:00:04]} e6 {
[%emt 0:00:26]} 3. e3 {[%emt 0:08:20]} b6 {[%emt 0:04:09]} 4. b3 {[%emt 0:03:
08]} Bb7 {[%emt 0:01:32]} 5. Bb2 {[%emt 0:00:12]} Be7 {[%emt 0:00:30]} 6. Nc3 {
[%emt 0:04:19]} O-O {[%emt 0:00:53]} 7. Rc1 {[%emt 0:04:52]} d5 {[%emt 0:03:47]
} 8. Be2 {[%emt 0:01:15]} Nbd7 {[%emt 0:02:37]} 9. O-O {[%emt 0:01:58]} dxc4 {
[%emt 0:01:49]} 10. Bxc4 {[%emt 0:03:22]} a6 {[%emt 0:01:30]} 11. d4 {[%emt 0:
12:25]} Bd6 {[%emt 0:03:44]} 12. Re1 {[%emt 0:06:56]} b5 {[%emt 0:07:18]} 13.
Bd3 {[%emt 0:09:22]} e5 {[%emt 0:01:46]} 14. Nd2 {[%emt 0:09:29]} exd4 {
[%emt 0:01:25]} 15. exd4 {[%emt 0:00:10]} Bf4 {[%emt 0:00:20]} 16. Ne2 {
[%emt 0:09:44]} Bxh2+ {[%emt 0:08:33]} 17. Kxh2 {[%emt 0:04:46]} Ng4+ {[%emt 0:
01:33]} 18. Kg3 {[%emt 0:00:01]} Ndf6 {[%emt 0:01:48]} 19. Nf4 {[%emt 0:04:31]}
g5 {[%emt 0:04:38]} 20. Ne4 {[%emt 0:08:40]} gxf4+ {[%emt 0:03:12]} 21. Kxf4 {
[%emt 0:05:18]} h5 {[%emt 0:00:45]} 22. f3 {[%emt 0:01:18]} Nxe4 {[%emt 0:05:
58]} 23. Rxe4 {[%emt 0:01:06]} Qd6+ {[%emt 0:01:59]} 24. Kg5 {[%emt 0:00:30]}
Nf2 {[%emt 0:03:42]} 25. Qc2 {[%emt 0:00:33]} f6+ {[%emt 0:02:47]} 26. Kxh5 {
[%emt 0:00:30]} Bxe4 {[%emt 0:00:26]} 27. Qxf2 {[%emt 0:00:32]} Qh2+ {[%emt 0:
00:31]} 28. Kg4 {[%emt 0:00:14]} Bxd3 {[%emt 0:00:16]} 29. Qd2 {[%emt 0:00:40]}
Bg6 {[%emt 0:00:34]} 30. f4 {[%emt 0:00:33]} f5+ {[%emt 0:00:32]} 31. Kf3 {
[%emt 0:00:05]} Bh5+ {[%emt 0:00:08]} 32. Kf2 {[%emt 0:00:03]} Rae8 {[%emt 0:
00:48]} 33. Re1 {[%emt 0:00:29]} Qh4+ {[%emt 0:00:08]} 0-1

[Event "23rd ETCC Women 2021"]
[Site "Catez"]
[Date "2021.11.19"]
[Round "7.36"]
[White "Motycakova, Monika"]
[Black "Nemcova, Karin"]
[Result "0-1"]
[ECO "B92"]
[WhiteElo "2119"]
[BlackElo "2169"]
[Annotator "NA"]
[PlyCount "80"]
[EventDate "2021.11.08"]
[EventType "team-tourn"]
[EventCountry "SLO"]
[SourceTitle "playchess.com"]
[Source "ChessBase"]
[SourceQuality "1"]
[WhiteTeam "Slovakia"]
[BlackTeam "Czech Republic"]
[WhiteTeamCountry "SVK"]
[BlackTeamCountry "CZE"]
[TimeControl "40/5400+30:1800+30"]

1. e4 {[%emt 0:00:03]} c5 {[%emt 0:00:08]} 2. Nf3 {[%emt 0:00:10]} d6 {[%emt 0:
00:06]} 3. d4 {[%emt 0:00:10]} cxd4 {[%emt 0:00:07]} 4. Nxd4 {[%emt 0:00:05]}
Nf6 {[%emt 0:00:08]} 5. Nc3 {[%emt 0:00:09]} a6 {[%emt 0:00:07]} 6. Be2 {
[%emt 0:00:14]} e5 {[%emt 0:00:08]} 7. Nf3 {[%emt 0:00:10]} Be7 {[%emt 0:00:20]
} 8. Bg5 {[%emt 0:00:15]} Be6 {[%emt 0:00:56]} 9. Bxf6 {[%emt 0:06:52]} Bxf6 {
[%emt 0:00:10]} 10. O-O {[%emt 0:03:15]} O-O {[%emt 0:02:39]} 11. Nd5 {[%emt 0:
02:15]} Nd7 {[%emt 0:01:42]} 12. Bc4 {[%emt 0:11:29]} Rc8 {[%emt 0:06:22]} 13.
Qe2 {[%emt 0:17:02]} Nb6 {[%emt 0:10:00]} 14. Nxb6 {[%emt 0:04:06]} Qxb6 {
[%emt 0:00:16]} 15. Bb3 {[%emt 0:00:05]} Rfd8 {[%emt 0:06:14]} 16. Rfd1 {
[%emt 0:02:09]} a5 {[%emt 0:07:32]} 17. c3 {[%emt 0:10:55]} Bxb3 {[%emt 0:03:
59]} 18. axb3 {[%emt 0:00:02]} Rc5 {[%emt 0:00:22]} 19. Qc2 {[%emt 0:08:16]} d5
{[%emt 0:02:26]} 20. exd5 {[%emt 0:03:57]} Rcxd5 {[%emt 0:02:28]} 21. Rxd5 {
[%emt 0:11:29]} Rxd5 {[%emt 0:00:13]} 22. Rd1 {[%emt 0:08:31]} Rb5 {[%emt 0:06:
50]} 23. Nd2 {[%emt 0:03:04]} Be7 {[%emt 0:05:33]} 24. Nc4 {[%emt 0:03:43]} Qe6
{[%emt 0:04:31]} 25. Ra1 {[%emt 0:02:29]} b6 {[%emt 0:01:28]} 26. Re1 {[%emt 0:
00:41]} f5 {[%emt 0:02:37]} 27. h3 {[%emt 0:00:44]} e4 {[%emt 0:09:38]} 28. Re2
{[%emt 0:00:38]} Bg5 {[%emt 0:03:56]} 29. Re1 {[%emt 0:00:45]} Rc5 {[%emt 0:01:
58]} 30. Na3 {[%emt 0:00:37]} b5 {[%emt 0:01:40]} 31. Rd1 {[%emt 0:00:18]} f4 {
[%emt 0:01:16]} 32. Re1 {[%emt 0:00:27]} e3 {[%emt 0:01:02]} 33. fxe3 {[%emt 0:
00:29]} fxe3 {[%emt 0:00:13]} 34. Re2 {[%emt 0:00:25]} Rd5 {[%emt 0:01:49]} 35.
Nb1 {[%emt 0:00:05]} Qd6 {[%emt 0:00:10]} 36. Re1 {[%emt 0:00:20]} Bh4 {
[%emt 0:01:00]} 37. Rf1 {[%emt 0:00:52]} Bf2+ {[%emt 0:02:21]} 38. Kh1 {
[%emt 0:00:24]} Qg6 {[%emt 0:01:38]} 39. Qe2 {[%emt 0:01:17]} Qg3 {[%emt 0:03:
43]} 40. c4 {[%emt 0:00:54]} Rg5 {[%emt 0:05:36]} 0-1

[Event "23rd ETCC Women 2021"]
[Site "Catez"]
[Date "2021.11.19"]
[Round "7.37"]
[White "Shvayger, Yuliya"]
[Black "Novkovic, Julia"]
[Result "1-0"]
[ECO "C67"]
[WhiteElo "2351"]
[BlackElo "2082"]
[Annotator "NA"]
[PlyCount "75"]
[EventDate "2021.11.08"]
[EventType "team-tourn"]
[EventCountry "SLO"]
[SourceTitle "playchess.com"]
[Source "ChessBase"]
[SourceQuality "1"]
[WhiteTeam "Israel"]
[BlackTeam "Austria"]
[WhiteTeamCountry "ISR"]
[BlackTeamCountry "AUT"]
[TimeControl "40/5400+30:1800+30"]

1. e4 {[%emt 0:00:04]} e5 {[%emt 0:00:04]} 2. Nf3 {[%emt 0:00:06]} Nc6 {
[%emt 0:00:06]} 3. Bb5 {[%emt 0:00:07]} Nf6 {[%emt 0:00:14]} 4. O-O {[%emt 0:
00:30]} Nxe4 {[%emt 0:00:39]} 5. d4 {[%emt 0:00:45]} Nd6 {[%emt 0:00:54]} 6.
Ba4 {[%emt 0:00:31]} e4 {[%emt 0:07:58]} 7. Re1 {[%emt 0:01:12]} Be7 {[%emt 0:
00:08]} 8. Ne5 {[%emt 0:00:14]} O-O {[%emt 0:05:22]} 9. Nc3 {[%emt 0:00:08]} f5
{[%emt 0:05:45]} 10. Bb3+ {[%emt 0:00:13]} Kh8 {[%emt 0:00:21]} 11. Bf4 {
[%emt 0:00:22]} Qe8 {[%emt 0:12:05]} 12. Nd5 {[%emt 0:03:30]} Bd8 {[%emt 0:01:
40]} 13. c4 {[%emt 0:01:30]} Nxe5 {[%emt 0:09:03]} 14. Bxe5 {[%emt 0:05:35]}
Nf7 {[%emt 0:16:10]} 15. Bxc7 {[%emt 0:04:41]} d6 {[%emt 0:02:17]} 16. f3 {
[%emt 0:09:06]} Bg5 {[%emt 0:08:41]} 17. Ba5 {[%emt 0:04:25]} Rb8 {[%emt 0:02:
38]} 18. Ba4 {[%emt 0:11:17]} b5 {[%emt 0:04:36]} 19. Nc7 {[%emt 0:14:32]} Qe7
{[%emt 0:00:32]} 20. Bxb5 {[%emt 0:00:11]} Bb7 {[%emt 0:03:16]} 21. d5 {
[%emt 0:01:31]} a6 {[%emt 0:02:18]} 22. Ba4 {[%emt 0:03:33]} Rfc8 {[%emt 0:02:
57]} 23. Ne6 {[%emt 0:01:27]} exf3 {[%emt 0:00:40]} 24. Qxf3 {[%emt 0:01:03]}
Rxc4 {[%emt 0:02:32]} 25. Bb3 {[%emt 0:00:05]} Re4 {[%emt 0:03:08]} 26. Qxf5 {
[%emt 0:03:09]} Be3+ {[%emt 0:01:31]} 27. Kh1 {[%emt 0:00:02]} Re5 {[%emt 0:01:
04]} 28. Qd3 {[%emt 0:00:43]} Bh6 {[%emt 0:02:55]} 29. Bc2 {[%emt 0:09:11]} g6
{[%emt 0:01:38]} 30. Bc3 {[%emt 0:00:02]} Kg8 {[%emt 0:00:18]} 31. Bxe5 {
[%emt 0:00:27]} dxe5 {[%emt 0:03:02]} 32. Bb3 {[%emt 0:00:52]} Qd6 {[%emt 0:00:
46]} 33. Rf1 {[%emt 0:00:23]} Re8 {[%emt 0:00:45]} 34. Qf3 {[%emt 0:05:07]} Re7
{[%emt 0:00:37]} 35. Rae1 {[%emt 0:00:40]} Kh8 {[%emt 0:00:39]} 36. Qf6+ {
[%emt 0:00:54]} Kg8 {[%emt 0:00:13]} 37. Re4 {[%emt 0:01:19]} Rxe6 {[%emt 0:00:
57]} 38. dxe6 {[%emt 0:00:17]} 1-0

[Event "23rd ETCC Women 2021"]
[Site "Catez"]
[Date "2021.11.19"]
[Round "7.38"]
[White "Hapala, Elisabeth"]
[Black "Klinova, Masha"]
[Result "0-1"]
[ECO "B06"]
[WhiteElo "2139"]
[BlackElo "2264"]
[Annotator "NA"]
[PlyCount "58"]
[EventDate "2021.11.08"]
[EventType "team-tourn"]
[EventCountry "SLO"]
[SourceTitle "playchess.com"]
[Source "ChessBase"]
[SourceQuality "1"]
[WhiteTeam "Austria"]
[BlackTeam "Israel"]
[WhiteTeamCountry "AUT"]
[BlackTeamCountry "ISR"]
[TimeControl "40/5400+30:1800+30"]

1. e4 {[%emt 0:00:02]} d6 {[%emt 0:00:16]} 2. d4 {[%emt 0:00:05]} g6 {[%emt 0:
00:29]} 3. Nc3 {[%emt 0:00:27]} Bg7 {[%emt 0:00:35]} 4. Be3 {[%emt 0:00:35]} a6
{[%emt 0:00:19]} 5. Qd2 {[%emt 0:01:54]} b5 {[%emt 0:02:03]} 6. h4 {[%emt 0:00:
39]} h5 {[%emt 0:01:30]} 7. f3 {[%emt 0:00:37]} Nd7 {[%emt 0:05:59]} 8. Nh3 {
[%emt 0:00:51]} Ngf6 {[%emt 0:00:08]} 9. Ng5 {[%emt 0:03:30]} Bb7 {[%emt 0:05:
45]} 10. O-O-O {[%emt 0:01:52]} e6 {[%emt 0:02:59]} 11. Kb1 {[%emt 0:04:07]}
Qe7 {[%emt 0:02:17]} 12. a3 {[%emt 0:02:30]} Rc8 {[%emt 0:04:13]} 13. d5 {
[%emt 0:11:51]} exd5 {[%emt 0:09:15]} 14. exd5 {[%emt 0:00:47]} Ne5 {[%emt 0:
00:30]} 15. Bd4 {[%emt 0:20:41]} O-O {[%emt 0:02:52]} 16. g4 {[%emt 0:14:00]}
c5 {[%emt 0:04:24]} 17. dxc6 {[%emt 0:04:55]} Bxc6 {[%emt 0:03:42]} 18. gxh5 {
[%emt 0:02:45]} Nxh5 {[%emt 0:21:09]} 19. Bh3 {[%emt 0:01:22]} Rb8 {[%emt 0:01:
33]} 20. Rhe1 {[%emt 0:08:45]} Qb7 {[%emt 0:04:19]} 21. Nce4 {[%emt 0:13:14]}
Bxe4 {[%emt 0:10:53]} 22. fxe4 {[%emt 0:01:10]} Qe7 {[%emt 0:01:10]} 23. Bg4 {
[%emt 0:03:11]} Nxg4 {[%emt 0:01:08]} 24. Bxg7 {[%emt 0:02:04]} Kxg7 {[%emt 0:
01:05]} 25. Qxd6 {[%emt 0:00:25]} Qxd6 {[%emt 0:01:39]} 26. Rxd6 {[%emt 0:00:
02]} a5 {[%emt 0:01:55]} 27. Rd7 {[%emt 0:00:08]} Kg8 {[%emt 0:00:55]} 28. Rf1
{[%emt 0:01:22]} Ne5 {[%emt 0:02:08]} 29. Ra7 {[%emt 0:00:03]} a4 {[%emt 0:00:
38]} 0-1

[Event "23rd ETCC Women 2021"]
[Site "Catez"]
[Date "2021.11.19"]
[Round "7.39"]
[White "Levitan, Ronit"]
[Black "Teuschler, Barbara"]
[Result "0-1"]
[ECO "B22"]
[WhiteElo "2068"]
[BlackElo "2115"]
[Annotator "NA"]
[PlyCount "66"]
[EventDate "2021.11.08"]
[EventType "team-tourn"]
[EventCountry "SLO"]
[SourceTitle "playchess.com"]
[Source "ChessBase"]
[SourceQuality "1"]
[WhiteTeam "Israel"]
[BlackTeam "Austria"]
[WhiteTeamCountry "ISR"]
[BlackTeamCountry "AUT"]
[TimeControl "40/5400+30:1800+30"]

1. e4 {[%emt 0:01:14]} c5 {[%emt 0:00:05]} 2. c3 {[%emt 0:00:14]} Nf6 {[%emt 0:
00:04]} 3. e5 {[%emt 0:00:12]} Nd5 {[%emt 0:00:04]} 4. d4 {[%emt 0:00:05]} cxd4
{[%emt 0:00:04]} 5. cxd4 {[%emt 0:00:10]} d6 {[%emt 0:00:20]} 6. Nf3 {[%emt 0:
00:11]} e6 {[%emt 0:00:31]} 7. Bc4 {[%emt 0:01:04]} Nc6 {[%emt 0:00:25]} 8. O-O
{[%emt 0:01:09]} Be7 {[%emt 0:00:04]} 9. exd6 {[%emt 0:04:17]} Qxd6 {[%emt 0:
00:58]} 10. Nc3 {[%emt 0:00:32]} O-O {[%emt 0:06:43]} 11. Re1 {[%emt 0:01:40]}
a6 {[%emt 0:04:04]} 12. Bb3 {[%emt 0:00:13]} Rd8 {[%emt 0:14:43]} 13. Qe2 {
[%emt 0:11:44]} Nf6 {[%emt 0:07:51]} 14. Be3 {[%emt 0:03:16]} b5 {[%emt 0:03:
34]} 15. Rad1 {[%emt 0:03:13]} Na5 {[%emt 0:00:27]} 16. Bc2 {[%emt 0:06:11]}
Nc4 {[%emt 0:02:19]} 17. Bg5 {[%emt 0:00:45]} Bb7 {[%emt 0:07:37]} 18. Bb1 {
[%emt 0:23:26]} Bxf3 {[%emt 0:21:32]} 19. gxf3 {[%emt 0:18:02]} Qb4 {[%emt 0:
01:06]} 20. Bc1 {[%emt 0:02:45]} Bf8 {[%emt 0:05:46]} 21. Ne4 {[%emt 0:03:14]}
Nd5 {[%emt 0:01:08]} 22. Ng5 {[%emt 0:05:09]} g6 {[%emt 0:01:57]} 23. Qf1 {
[%emt 0:06:16]} Nxb2 {[%emt 0:09:30]} 24. Qh3 {[%emt 0:03:19]} Nf6 {[%emt 0:00:
20]} 25. Bxb2 {[%emt 0:01:52]} Qxb2 {[%emt 0:00:07]} 26. Re4 {[%emt 0:01:19]}
Rd5 {[%emt 0:02:53]} 27. Rg4 {[%emt 0:01:00]} Bg7 {[%emt 0:01:34]} 28. Rg3 {
[%emt 0:01:08]} Rxd4 {[%emt 0:00:54]} 29. Rxd4 {[%emt 0:00:31]} Qxd4 {[%emt 0:
00:01]} 30. Kg2 {[%emt 0:00:27]} Nh5 {[%emt 0:03:14]} 31. Nxe6 {[%emt 0:00:36]}
fxe6 {[%emt 0:00:25]} 32. Qxe6+ {[%emt 0:00:04]} Kh8 {[%emt 0:00:11]} 33. Qe1 {
[%emt 0:00:53]} Nxg3 {[%emt 0:00:16]} 0-1